fUST/lending_fUST_20251105
["ID","MTS","AMOUNT","RATE_DAILY","PERIOD"]
[393221847,1762341985914,-169.65502158,0.00015048,2]
[393221848,1762341985937,-25.50053048,0.000152,2]
[393221858,1762342038078,-144.1544911,0.000152,2]
[393221859,1762342038098,-284.02285898,0.00015452,2]
[393221860,1762342038117,-200.67749782,0.00015452,2]
[393221861,1762342105427,-210.09170906,0.00015143,2]
[393221867,1762342156108,-89.90829094,0.00015143,2]
[393221868,1762342156127,-300.0,0.00015296,2]
[393221869,1762342156148,-179.45911257,0.00015452,2]
[393221870,1762342156168,-249.55872272,0.00015452,2]
[393221871,1762342156189,-449.20570089,0.00015452,2]
[393221872,1762342156208,-798.58791269,0.00015452,2]
[393221873,1762342156230,-384.54578613,0.00015452,2]
[393221874,1762342162642,862.00003384,0.00015297,2]
[393221875,1762342165434,-403.62763755,0.00015452,2]
[393221876,1762342168213,-207.40908845,0.00015452,2]
[393221877,1762342170491,-227.20202614,0.00015452,2]
[393221878,1762342170616,250.96330784,0.00015297,2]
[393221879,1762342229855,159.38424726,0.00015594,2]
[393221911,1762342232178,-159.38424726,0.00015751,2]
[393221912,1762342232187,-180.79593667,0.0001599,2]
[393221913,1762342232196,-159.66917271,0.0001607,2]
[393221914,1762342232205,-528.77253276,0.00016072,2]
[393221915,1762342232215,-300.0,0.00016072,2]
[393221916,1762342232224,-44956.83107212,0.00016073,2]
[393221917,1762342232235,-36100.36698503,0.00016073,2]
[393221927,1762342237947,10000.01,0.00015912,2]
[393221930,1762342238119,-1113.2095471,0.00015912,2]
[393221931,1762342238131,-15566.18589633,0.00015912,2]
[393221932,1762342238143,-274.26608513,0.00015912,2]
[393221933,1762342238173,-314.44536162,0.00015912,2]
[393222022,1762342240971,-3e-08,0.00015912,2]
[393222025,1762342240989,-16706.84746785,0.00015912,2]
[393222214,1762342243292,-1940.55086211,0.00015912,2]
[393222236,1762342246165,-8727.66241106,0.00015912,2]
[393222241,1762342286082,-186.51937999,0.00015072,2]
[393222242,1762342289194,-328.13905222,0.00015072,2]
[393222243,1762342292173,-163.10206508,0.00015072,2]
[393222244,1762342294283,-180.91238645,0.00015072,2]
[393222245,1762342296483,-479.91692964,0.00015072,2]
[393222246,1762342298008,-391.67557583,0.00015072,2]
[393222247,1762342315445,-407.43103388,0.00015072,2]
[393222248,1762342321578,-196.28083808,0.00015072,2]
[393222249,1762342324293,-300.80984131,0.00015072,2]
[393222250,1762342326555,-308.83400442,0.00015072,2]
[393222251,1762342328140,-266.67515437,0.00015072,2]
[393222252,1762342345449,-379.0986642,0.00015072,2]
[393222253,1762342347547,-171.48244664,0.00015072,2]
[393222254,1762342350773,-236.60456641,0.00015072,2]
[393222256,1762342352813,-387.74800724,0.00015072,2]
[393222257,1762342354266,-450.0,0.00015072,2]
[393222258,1762342356513,-201.30505731,0.00015072,2]
[393222259,1762342359378,-157.37654015,0.00015072,2]
[393222260,1762342375536,-161.74352291,0.00015072,2]
[393222261,1762342377680,-212.724126,0.00015072,2]
[393222262,1762342380654,-483.87609215,0.00015072,2]
[393222263,1762342382810,-226.53685538,0.00015072,2]
[393222264,1762342384323,-164.28104388,0.00015072,2]
[393222265,1762342386989,-153.33194213,0.00015072,2]
[393222266,1762342390565,-300.0,0.00015072,2]
[393222267,1762342390892,-3019.08627973,0.00015072,2]
[393222268,1762342390913,-379.04863035,0.00015072,2]
[393222269,1762342390933,-314.42272579,0.00015595,2]
[393222270,1762342390954,-2726.09539877,0.00015753,2]
[393222271,1762342390975,-300.0,0.00015911,2]
[393222272,1762342390996,-8258.24453855,0.00015912,2]
[393222273,1762342391016,-500.0,0.00015989,2]
[393222274,1762342391036,-500.0,0.00016072,2]
[393222275,1762342391056,-301.0,0.00016072,2]
[393222276,1762342391077,-514935.10242681,0.00016073,2]
[393222279,1762342420444,-203.05,0.00014914,2]
[393222280,1762342423826,-188.74523064,0.00014914,2]
[393222283,1762342429208,-300.0,0.00014914,2]
[393222285,1762342431341,-300.0,0.00014914,2]
[393222288,1762342451032,-305.7801893,0.00014765,2]
[393222289,1762342453093,-410.95013948,0.00014765,2]
[393222290,1762342455396,-235.73576301,0.00014765,2]
[393222293,1762342459220,-344.81635984,0.00014765,2]
[393222294,1762342462613,-155.93364418,0.00014765,2]
[393222295,1762342464736,-153.57690717,0.00014765,2]
[393222297,1762342480465,-362.53684632,0.00014765,2]
[393222298,1762342482105,-246.44365917,0.00014765,2]
[393222299,1762342484480,-300.0,0.00014765,2]
[393222300,1762342487855,-190.13755335,0.00014765,2]
[393222301,1762342489908,-156.56208986,0.00014765,2]
[393222302,1762342492564,-287.80511253,0.00014765,2]
[393222303,1762342494709,-179.70897583,0.00014765,2]
[393222383,1762342510390,-298.49479573,0.00014765,2]
[393222384,1762342514968,-300.0,0.00014765,2]
[393222385,1762342517058,-153.81499948,0.00014765,2]
[393222386,1762342519687,-217.63403229,0.00014765,2]
[393222387,1762342522693,-382.36596771,0.00014765,2]
[393222388,1762342529732,-232.36596771,0.00014765,2]
[393222389,1762342532649,-170.74956027,0.00014765,2]
[393222390,1762342534651,-64.58743677,0.00014765,2]
[393222391,1762342534673,-150.28,0.000149,2]
[393222392,1762342534695,-85.13256323,0.000149,2]
[393222393,1762342537312,-65.14743677,0.000149,2]
[393222394,1762342537334,-300.0,0.00014913,2]
[393222395,1762342537357,-84.85256323,0.00014913,2]
[393222396,1762342539966,-300.0,0.000148,2]
[393222397,1762342543108,-300.0,0.00014913,2]
[393222398,1762342545818,-160.14743677,0.00014913,2]
[393222399,1762342545840,-2.64054237,0.00014914,2]
[393222401,1762342547344,-275.99194679,0.00014914,2]
[393222402,1762342549390,-283.00114507,0.000148,2]
[393222403,1762342553352,-16.99885493,0.000148,2]
[393222404,1762342553541,-283.00114507,0.00014914,2]
[393222405,1762342558915,-303.81499948,0.00014914,2]
[393222406,1762342563927,-322.53495666,0.00014765,2]
[393222407,1762342566029,-7.17401917,0.00014765,2]
[393222408,1762342566049,-265.23022601,0.000148,2]
[393222409,1762342568296,-34.76977399,0.000148,2]
[393222410,1762342568318,-300.0,0.00014913,2]
[393222411,1762342568341,-3.45930212,0.00014914,2]
[393222412,1762342569974,-181.34363045,0.00014914,2]
[393222413,1762342572036,-250.63716516,0.00014914,2]
[393222414,1762342578209,-294.79700951,0.000148,2]
[393222415,1762342580515,-5.20299049,0.000148,2]
[393222416,1762342580541,-238.55260322,0.00014914,2]
[393222417,1762342582797,-150.28,0.000149,2]
[393222418,1762342582818,-163.65664654,0.00014914,2]
[393222419,1762342588265,-216.07419342,0.000148,2]
[393222420,1762342590349,-150.28,0.000149,2]
[393222421,1762342590374,-3.34930103,0.00014914,2]
[393222422,1762342592533,-164.84330196,0.00014652,2]
[393222423,1762342595219,-135.15669804,0.00014652,2]
[393222424,1762342595242,-143.98931423,0.000149,2]
[393222431,1762342621072,1000000.0,0.00037541,30]
[393222473,1762342651378,151.0,0.00019263,7]
[393222474,1762342651754,151.0,0.00020945,7]
[393222475,1762342653150,151.0,0.00019263,7]
[393222476,1762342653455,151.0,0.00020945,7]
[393222478,1762342705780,-156.01068577,0.00014603,2]
[393222479,1762342705802,-156.01068577,0.00014751,2]
[393222480,1762342705838,-150.28,0.000148,2]
[393222481,1762342705867,-62.34204303,0.000148,2]
[393222482,1762342766022,-183.30970447,0.00014515,2]
[393222483,1762342768733,-24.33582715,0.00014515,2]
[393222484,1762342768756,-181.50198182,0.00014662,2]
[393222487,1762342780457,-26.1435498,0.00014662,2]
[393222488,1762342780479,-152.54,0.000148,2]
[393222489,1762342780500,-5.26831717,0.000148,2]
[393222526,1762342810949,-566.96597113,0.00014652,2]
[393222527,1762342815165,-723.33015948,0.00014652,2]
[393222528,1762342817371,-374.7779449,0.00014652,2]
[393222529,1762342821433,-7.59760732,0.00014652,2]
[393222530,1762342821456,-323.18358171,0.00014658,2]
[393222531,1762342823526,-217.56652542,0.00014658,2]
[393222532,1762342843403,-216.17313742,0.00014511,2]
[393222533,1762342845541,-243.07675545,0.00014511,2]
[393222534,1762342845565,-83.72446456,0.00014658,2]
[393222535,1762342847176,-300.0,0.00014658,2]
[393222574,1762343051106,-75.52542831,0.00014658,2]
[393222575,1762343051127,-189.77651133,0.00014729,2]
[393222610,1762343185915,-18.61322749,0.00014729,2]
[393222611,1762343185943,-226.63428719,0.00014822,2]
[393222612,1762343188048,-205.95822941,0.00014822,2]
[393222653,1762343237097,-3425.8501924,0.00014674,2]
[393222654,1762343237118,-121.16530565,0.00014798,2]
[393222655,1762343253223,151.0,0.00021,7]
[393222670,1762343348113,-300.0,0.00014821,2]
[393222671,1762343348139,-21488.1872863,0.00014822,2]
[393222672,1762343348160,-771.2857573,0.00014822,2]
[393222673,1762343348182,-500.0,0.00014897,2]
[393222674,1762343348203,-500.0,0.00014897,2]
[393222675,1762343348223,-500.0,0.00014897,2]
[393222676,1762343348244,-500.0,0.00014897,2]
[393222677,1762343348265,-500.0,0.00014897,2]
[393222678,1762343348286,-500.0,0.00014897,2]
[393222679,1762343348304,-500.0,0.00014897,2]
[393222680,1762343348327,-500.0,0.00014897,2]
[393222681,1762343348348,-500.0,0.00014897,2]
[393222682,1762343348371,-500.0,0.00014897,2]
[393222683,1762343348393,-343.83320599,0.00014897,2]
[393222684,1762343348415,-500.0,0.00014897,2]
[393222685,1762343348437,-500.0,0.00014897,2]
[393222686,1762343348459,-500.0,0.00014897,2]
[393222687,1762343348482,-500.0,0.00014897,2]
[393222688,1762343348503,-617.23405143,0.00014897,2]
[393222689,1762343348526,-500.0,0.00014897,2]
[393222690,1762343348548,-500.0,0.00014897,2]
[393222691,1762343348571,-500.0,0.00014897,2]
[393222692,1762343348592,-500.0,0.00014897,2]
[393222693,1762343348619,-500.0,0.00014897,2]
[393222694,1762343348640,-500.0,0.00014897,2]
[393222695,1762343348661,-424.91292379,0.00014897,2]
[393222696,1762343348684,-500.0,0.00014897,2]
[393222697,1762343348705,-500.0,0.00014897,2]
[393222698,1762343348726,-500.0,0.00014897,2]
[393222699,1762343348748,-500.0,0.00014897,2]
[393222700,1762343348768,-500.0,0.00014897,2]
[393222701,1762343348790,-500.0,0.00014897,2]
[393222702,1762343348811,-500.0,0.00014897,2]
[393222703,1762343348832,-500.0,0.00014897,2]
[393222704,1762343348853,-500.0,0.00014897,2]
[393222705,1762343348875,-500.0,0.00014897,2]
[393222706,1762343348896,-500.0,0.00014897,2]
[393222707,1762343348917,-500.0,0.00014897,2]
[393222708,1762343348938,-500.0,0.00014897,2]
[393222709,1762343348965,-200.88496192,0.00014897,2]
[393222710,1762343348986,-500.0,0.00014897,2]
[393222711,1762343349007,-500.0,0.00014897,2]
[393222712,1762343349028,-50000.0,0.00014897,2]
[393222713,1762343349197,-300.0,0.000149,2]
[393222714,1762343349219,-152.4,0.000149,2]
[393222715,1762343349238,-152.4,0.000149,2]
[393222716,1762343349260,-152.4,0.000149,2]
[393222717,1762343349279,-152.4,0.000149,2]
[393222718,1762343349304,-152.4,0.000149,2]
[393222719,1762343349324,-152.4,0.000149,2]
[393222720,1762343349342,-152.4,0.000149,2]
[393222721,1762343349366,-152.4,0.000149,2]
[393222722,1762343349389,-152.4,0.000149,2]
[393222723,1762343349409,-152.4,0.000149,2]
[393222724,1762343349429,-152.4,0.000149,2]
[393222725,1762343349448,-152.4,0.000149,2]
[393222726,1762343349468,-152.4,0.000149,2]
[393222727,1762343349488,-152.4,0.000149,2]
[393222728,1762343349509,-152.4,0.000149,2]
[393222729,1762343349529,-152.4,0.000149,2]
[393222730,1762343349548,-152.4,0.000149,2]
[393222731,1762343349569,-500.0,0.00014911,2]
[393222732,1762343349589,-248.11941019,0.00014913,2]
[393222733,1762343349609,-9520.38413548,0.00014914,2]
[393222735,1762343362234,-152.4,0.000149,2]
[393222736,1762343362253,-152.4,0.000149,2]
[393222737,1762343362272,-152.4,0.000149,2]
[393222738,1762343362291,-152.4,0.000149,2]
[393222739,1762343362310,-152.4,0.000149,2]
[393222740,1762343362329,-152.4,0.000149,2]
[393222741,1762343362349,-2542.65127878,0.00014914,2]
[393222742,1762343372094,-152.4,0.000149,2]
[393222743,1762343372116,-152.4,0.000149,2]
[393222744,1762343372138,-152.4,0.000149,2]
[393222745,1762343372158,-152.4,0.000149,2]
[393222746,1762343372179,-152.4,0.000149,2]
[393222747,1762343372199,-152.4,0.000149,2]
[393222748,1762343372219,-3141.27129217,0.00014914,2]
[393222749,1762343372241,-206.46926023,0.00014957,2]
[393222750,1762343372262,-151.0,0.00015,2]
[393222751,1762343372281,-500.0,0.00015,2]
[393222752,1762343372300,-198.0,0.00015055,2]
[393222753,1762343372320,-500.0,0.00015055,2]
[393222754,1762343372340,-467.50766253,0.0001511,2]
[393222755,1762343372366,-32.49233747,0.0001511,2]
[393222756,1762343372384,-349.0,0.00015164,2]
[393222757,1762343372405,-500.0,0.00015373,2]
[393222758,1762343372425,-501.32630293,0.00015373,2]
[393222759,1762343372444,-500.0,0.00015373,2]
[393222760,1762343372464,-500.0,0.00015373,2]
[393222761,1762343372490,152.4,0.000149,2]
[393222762,1762343372843,152.4,0.000149,2]
[393222763,1762343373302,152.4,0.000149,2]
[393222764,1762343373330,334.17873669,0.00013699,2]
[393222765,1762343373358,493.11034131,0.00013699,2]
[393222766,1762343374116,-152.4,0.000149,2]
[393222767,1762343374138,-152.4,0.000149,2]
[393222768,1762343374157,-960.83267073,0.00015781,2]
[393222835,1762343432615,-470.48256492,0.00015884,2]
[393222836,1762343432625,-200.54699907,0.00015921,2]
[393222837,1762343432637,-417.16503418,0.00015921,2]
[393222844,1762343438319,-382.28796675,0.00015921,2]
[393222845,1762343438329,-21.92024439,0.00015921,2]
[393222914,1762343441373,-3e-08,0.00015921,2]
[393222992,1762343443640,-0.16307664,0.00015921,2]
[393222996,1762343446588,-50.02582706,0.00015921,2]
[393223012,1762343501923,2798.9752851,0.00013863,2]
[393223021,1762343639732,49345.52,0.000185,3]
[393223022,1762343639757,50000.0,0.000185,3]
[393223025,1762343659860,50000.0,0.000175,3]
[393223030,1762343683692,98092.50968106,0.000222,9]
[393223031,1762343705745,120242.97031894,0.00018,4]
[393223040,1762343756785,1255.69,0.00015963,3]
[393223041,1762343756992,2511.38,0.00017333,3]
[393223042,1762343761917,500.0,0.00014381,2]
[393223043,1762343767408,627.85,0.00015963,3]
[393223044,1762343767601,1255.7,0.00017333,3]
[393223045,1762343778239,313.92,0.00015963,3]
[393223046,1762343778796,627.84,0.00017333,3]
[393223047,1762343785198,500.0,0.00014381,2]
[393223048,1762343789120,156.96,0.00015963,3]
[393223049,1762343789323,313.92,0.00017333,3]
[393223050,1762343791091,151.39190376,0.00017733,7]
[393223051,1762343799733,470.92,0.00015963,3]
[393223053,1762343808504,500.0,0.00014381,2]
[393223054,1762343832611,500.0,0.00014381,2]
[393223055,1762343834687,109690.0,0.000215,4]
[393223060,1762343853230,151.0,0.00021,7]
[393223061,1762343855730,500.0,0.00014381,2]
[393223062,1762343879557,500.0,0.00014381,2]
[393223063,1762343902747,500.0,0.00014381,2]
[393223064,1762343925992,500.0,0.00014381,2]
[393223065,1762343927241,-195.19969625,0.00014526,2]
[393223066,1762343928823,-156.13105961,0.00014526,2]
[393223067,1762343930343,-148.66924414,0.00014526,2]
[393223068,1762343930365,-24.94887182,0.00014747,2]
[393223069,1762343936049,-177.3910032,0.000146,2]
[393223070,1762343936072,-72.2668025,0.00014747,2]
[393223073,1762343950378,-105.1242007,0.00014747,2]
[393223074,1762343950399,-175.48770835,0.00014821,2]
[393223075,1762343952033,-271.03465328,0.00014821,2]
[393223076,1762343976013,-53.47763837,0.00014821,2]
[393223079,1762343991353,-1373.97830523,0.00015543,2]
[393223080,1762343991380,-1373.97830523,0.000157,2]
[393223081,1762343991407,-501.39451895,0.00015884,2]
[393223082,1762343991452,-3501.30774118,0.00015884,2]
[393223083,1762343991540,-1200.0,0.00015971,2]
[393223084,1762343991569,-300.0,0.00015971,2]
[393223085,1762343991618,-7000.01,0.00015972,2]
[393223086,1762343991642,-10000.01,0.00015972,2]
[393223087,1762343991756,-4953.53094375,0.00015972,2]
[393223088,1762343991790,-92.9481125,0.00015972,2]
[393223089,1762343992027,-80.73547463,0.00015972,2]
[393223090,1762343992055,-547.21254709,0.00015972,2]
[393223091,1762343992083,-500.0,0.00015972,2]
[393223092,1762343992110,-500.0,0.00015972,2]
[393223093,1762343992137,-179.69267238,0.00015972,2]
[393223094,1762343992164,-204.87035622,0.00015972,2]
[393223095,1762343992191,-188.98721799,0.00015972,2]
[393223096,1762343992216,-164.66547393,0.00015972,2]
[393223097,1762343992245,-204.47045852,0.00015972,2]
[393223098,1762343992271,-501.61963227,0.00015973,2]
[393223099,1762343992298,-500.63534299,0.00015973,2]
[393223100,1762343992327,-500.0,0.00015973,2]
[393223101,1762343992354,-503.91336639,0.00015973,2]
[393223102,1762343992380,-346.40491518,0.00015973,2]
[393223103,1762343992460,-153.59508482,0.00015973,2]
[393223104,1762343992488,-497.35053995,0.00015973,2]
[393223105,1762343992516,-307.82784461,0.00015973,2]
[393223106,1762343992544,-502.52305216,0.00015973,2]
[393223107,1762343992575,-500.0,0.00015973,2]
[393223108,1762343992601,-500.0,0.00015973,2]
[393223109,1762343992627,-588.52890216,0.00015973,2]
[393223110,1762343992653,-502.73923075,0.00015973,2]
[393223111,1762343992679,-500.0,0.00015973,2]
[393223112,1762343992706,-500.0,0.00015973,2]
[393223113,1762343992733,-392.14280726,0.00015973,2]
[393223114,1762343992887,-110.59507658,0.00015973,2]
[393223115,1762343992914,-500.0,0.00015973,2]
[393223116,1762343992943,-407.22273631,0.00015973,2]
[393223117,1762343993456,-272.10190436,0.00015973,2]
[393223118,1762343993474,-7964.37437422,0.00015973,2]
[393223119,1762343993487,-10000.01,0.00015973,2]
[393223120,1762343993523,-10000.01,0.00015973,2]
[393223121,1762343993537,-10000.01,0.00015973,2]
[393223122,1762343994151,-10000.01,0.00015973,2]
[393223123,1762343997285,-10000.01,0.00015973,2]
[393223124,1762343997371,-10000.01,0.00015973,2]
[393223125,1762343997478,-10000.01,0.00015973,2]
[393223126,1762343997583,-10000.01,0.00015973,2]
[393223127,1762343997731,-10000.01,0.00015973,2]
[393223128,1762343997859,-10000.01,0.00015973,2]
[393223129,1762343997963,-10000.01,0.00015973,2]
[393223130,1762343998123,-10000.01,0.00015973,2]
[393223131,1762343998226,-10000.01,0.00015973,2]
[393223132,1762344000584,-574.69296995,0.00015813,2]
[393223133,1762344000618,-8850.6240601,0.00015973,2]
[393223134,1762344003372,-10000.01,0.00015973,2]
[393223135,1762344003492,-10000.01,0.00015973,2]
[393223136,1762344003742,-10000.01,0.00015973,2]
[393223137,1762344003990,-10000.01,0.00015973,2]
[393223138,1762344004234,-10000.01,0.00015973,2]
[393223139,1762344004502,-10000.01,0.00015973,2]
[393223140,1762344004803,-10000.01,0.00015973,2]
[393223141,1762344005040,-10000.01,0.00015973,2]
[393223142,1762344005287,-10000.01,0.00015973,2]
[393223143,1762344005480,-10000.01,0.00015973,2]
[393223144,1762344009438,-10000.01,0.00015813,2]
[393223145,1762344009574,-1277.3410061,0.00015813,2]
[393223146,1762344009601,-7445.3279878,0.00015813,2]
[393223147,1762344009702,-10000.01,0.00015973,2]
[393223148,1762344009814,-10000.01,0.00015973,2]
[393223149,1762344009936,-10000.01,0.00015973,2]
[393223150,1762344010066,-10000.01,0.00015973,2]
[393223151,1762344010176,-10000.01,0.00015973,2]
[393223152,1762344010331,-10000.01,0.00015973,2]
[393223153,1762344010430,-10000.01,0.00015973,2]
[393223154,1762344010581,-10000.01,0.00015973,2]
[393223155,1762344015554,-300.0,0.00015972,2]
[393223156,1762344015592,-9400.01,0.00015973,2]
[393223157,1762344015648,-10000.01,0.00015973,2]
[393223158,1762344015756,-10000.01,0.00015973,2]
[393223159,1762344015920,-10000.01,0.00015973,2]
[393223160,1762344016071,-10000.01,0.00015973,2]
[393223161,1762344016175,-10000.01,0.00015973,2]
[393223162,1762344016305,-10000.01,0.00015973,2]
[393223163,1762344016434,-10000.01,0.00015973,2]
[393223166,1762344016539,-10000.01,0.00015973,2]
[393223167,1762344016649,-10000.01,0.00015973,2]
[393223169,1762344025066,324.85,0.00015963,3]
[393223170,1762344028234,276.98360399,0.00015972,2]
[393223179,1762344214953,1715.0,0.00032877,120]
[393223200,1762344357119,-200.27532749,0.00015699,2]
[393223214,1762344430077,-206.08894803,0.00015599,2]
[393223215,1762344430097,-1283.99165931,0.00015699,2]
[393223216,1762344430117,-203.01618549,0.00015786,2]
[393223217,1762344430136,-488.01079305,0.000158,2]
[393223218,1762344430155,-752.92898117,0.00015872,2]
[393223221,1762344442104,-49247.07101883,0.00015872,2]
[393223222,1762344442124,-182.67592956,0.00015872,2]
[393223223,1762344442144,-500.0,0.00015872,2]
[393223224,1762344442164,-500.0,0.00015872,2]
[393223225,1762344442186,-500.0,0.00015872,2]
[393223226,1762344442206,-500.0,0.00015872,2]
[393223227,1762344442226,-500.0,0.00015872,2]
[393223228,1762344442249,-500.0,0.00015872,2]
[393223229,1762344442268,-500.0,0.00015872,2]
[393223230,1762344442288,-500.0,0.00015872,2]
[393223231,1762344442309,-500.0,0.00015872,2]
[393223232,1762344442330,-500.0,0.00015872,2]
[393223233,1762344442349,-500.0,0.00015872,2]
[393223234,1762344442371,-432.42163141,0.00015872,2]
[393223235,1762344442393,-500.0,0.00015872,2]
[393223236,1762344442414,-500.0,0.00015872,2]
[393223237,1762344442436,-455.51064629,0.00015872,2]
[393223238,1762344442457,-500.0,0.00015872,2]
[393223239,1762344442478,-159.44988539,0.00015872,2]
[393223240,1762344442498,-500.0,0.00015872,2]
[393223241,1762344442519,-500.0,0.00015872,2]
[393223242,1762344442540,-500.0,0.00015872,2]
[393223243,1762344442559,-500.0,0.00015872,2]
[393223244,1762344442579,-500.0,0.00015872,2]
[393223245,1762344442601,-500.0,0.00015872,2]
[393223246,1762344442621,-630.79646573,0.00015872,2]
[393223247,1762344442641,-500.0,0.00015872,2]
[393223248,1762344442662,-500.0,0.00015872,2]
[393223249,1762344442683,-500.0,0.00015872,2]
[393223250,1762344442702,-500.0,0.00015872,2]
[393223251,1762344442721,-500.0,0.00015872,2]
[393223252,1762344442741,-500.0,0.00015872,2]
[393223253,1762344442761,-500.0,0.00015872,2]
[393223254,1762344442782,-500.0,0.00015872,2]
[393223255,1762344442802,-500.0,0.00015872,2]
[393223256,1762344442822,-500.0,0.00015872,2]
[393223257,1762344442841,-500.0,0.00015872,2]
[393223258,1762344442861,-196.0,0.00015872,2]
[393223259,1762344442884,-234.0,0.00015872,2]
[393223260,1762344442903,-502.63451928,0.00015873,2]
[393223261,1762344442923,-500.0,0.00015873,2]
[393223262,1762344442941,-500.0,0.00015873,2]
[393223263,1762344442963,-15866.14585441,0.00015873,2]
[393223286,1762344573916,153.186882,0.00019721,7]
[393223332,1762344632648,-482.66028923,0.000158,2]
[393223334,1762344632657,-202.73672477,0.00015869,2]
[393223381,1762344633208,-97.26327523,0.00015869,2]
[393223383,1762344633218,-9281.2596082,0.0001587,2]
[393223441,1762344640640,-865.7903918,0.0001587,2]
[393223442,1762344640650,-574.2096082,0.00015873,2]
[393223443,1762344640661,-8651.38914136,0.00015873,2]
[393223642,1762344643855,-44.50362768,0.00015873,2]
[393223659,1762344647047,-124.0540452,0.00015873,2]
[393223663,1762344800370,244.334022,0.00030137,120]
[393223664,1762344849428,5000.0,0.000215,4]
[393223665,1762344872623,5000.0,0.000215,4]
[393223666,1762344881216,418.66929077,0.000215,4]
[393223667,1762344897382,3757.42223015,0.000215,4]
[393223668,1762344952533,10343.45377479,0.000156,10]
[393223672,1762345052131,151.0,0.00021,7]
[393223725,1762345480488,-214.56281874,0.00014415,2]
[393223726,1762345484108,-29.05119301,0.00014415,2]
[393223727,1762345484129,-270.94880699,0.00014415,2]
[393223729,1762345486732,-7.46720644,0.00014415,2]
[393223730,1762345486753,-376.80671459,0.00014415,2]
[393223748,1762345555448,-57.78328137,0.00014415,2]
[393223749,1762345555476,-146.67127248,0.00014718,2]
[393223755,1762345585484,-193.86979878,0.00014718,2]
[393223767,1762345642121,-106.20043584,0.00014718,2]
[393223768,1762345642141,-201.95586178,0.00014945,2]
[393223769,1762345642162,-300.0,0.00015172,2]
[393223770,1762345642182,-251.2167222,0.00015173,2]
[393223785,1762345705513,695.91052927,0.00021,10]
[393223788,1762345712455,151.0,0.00021,7]
[393223811,1762345754086,-1010.78301426,0.00015,2]
[393223812,1762345754106,-196.58580574,0.00015,2]
[393223815,1762345756080,-2882.39203257,0.00015,2]
[393223816,1762345756100,-300.0,0.00015172,2]
[393223817,1762345756120,-166.65224745,0.00015173,2]
[393223818,1762345756140,-752.16414538,0.00015173,2]
[393223819,1762345756159,-1337.18070289,0.00015173,2]
[393223820,1762345756180,-2087.25550342,0.00015173,2]
[393223821,1762345756201,-273.05254071,0.000152,2]
[393223822,1762345756222,-150.008,0.00015555,2]
[393223823,1762345756242,-422.32775305,0.00015673,2]
[393223824,1762345756261,-500.0,0.0001577,2]
[393223825,1762345756282,-500.0,0.0001577,2]
[393223826,1762345756301,-500.0,0.0001577,2]
[393223827,1762345756321,-500.0,0.0001577,2]
[393223828,1762345756342,-500.0,0.0001577,2]
[393223829,1762345756361,-169.12178736,0.0001577,2]
[393223830,1762345756380,-500.0,0.0001577,2]
[393223831,1762345756515,-500.0,0.0001577,2]
[393223832,1762345756533,-500.0,0.0001577,2]
[393223833,1762345756552,-500.0,0.0001577,2]
[393223834,1762345756570,-396.28470313,0.0001577,2]
[393223835,1762345756589,-363.07964657,0.0001577,2]
[393223836,1762345756609,-500.0,0.0001577,2]
[393223837,1762345756628,-500.0,0.0001577,2]
[393223838,1762345756647,-500.0,0.0001577,2]
[393223839,1762345756664,-500.0,0.0001577,2]